bitfinex/quotes_SOLUSD_20250111
["timestamp","ask_amount","ask_price","bid_price","bid_amount"]
[1736632894890,0.12549,191.12,191.04,9.48486265]
[1736632898097,0.12549,191.12,191.03,9.48486265]
[1736632899398,20.0,191.1,191.03,9.48486265]
[1736632901404,20.0,191.1,191.04,9.48486265]
[1736632902210,20.0,191.1,191.03,9.48486265]
[1736632902809,20.0,191.1,191.04,9.48486265]
[1736632904579,0.12549,191.12,191.06,9.48486265]
[1736632905085,0.12549,191.12,191.0,36.865484]
[1736632905290,0.12549,191.12,191.04,9.48486265]
[1736632909009,2.74169,191.12,190.97,13.0907]
[1736632909218,20.0,191.1,191.01,9.48486265]
[1736632911922,26.3736,191.06,190.94,13.0929]
[1736632912121,26.3736,191.06,190.97,9.48486265]
[1736632912800,0.12549,191.05,190.97,9.48486265]
[1736632913211,0.12549,191.05,190.94,20.0]
[1736632913417,0.12549,191.03,190.95,13.96486265]
[1736632914830,0.12549,191.03,190.94,33.96486265]
[1736632915197,0.12549,191.03,190.94,29.48486265]
[1736632915922,0.12549,191.03,190.95,9.48486265]
[1736632917319,0.12549,191.03,190.96,9.48486265]
[1736632917724,0.12549,191.03,190.97,9.48486265]
[1736632918115,0.12549,191.03,190.93,24.48]
[1736632918116,1.5812,191.04,190.98,9.48486265]
[1736632918313,1.5812,191.04,190.99,9.48486265]
[1736632918933,1.5812,191.04,190.93,37.5737]
[1736632919134,1.5812,191.04,190.98,9.48486265]
[1736632921445,1.5812,191.04,191.0,9.48486265]
[1736632921649,6.3736,191.06,191.02,9.48486265]
[1736632922014,1.6253,191.09,191.04,9.48486265]
[1736632922620,1.6253,191.09,191.05,9.48486265]
[1736632922825,6.1888,191.11,191.07,9.48486265]
[1736632923026,1.6253,191.14,191.07,9.48486265]
[1736632923333,0.12549,191.13,191.05,9.48486265]
[1736632923715,0.12549,191.13,191.06,9.48486265]
[1736632924719,1.6253,191.14,191.06,9.48486265]
[1736632928045,1.6253,191.14,191.07,9.48486265]
[1736632928225,1.6253,191.14,191.08,9.48486265]
[1736632929423,1.6253,191.14,191.06,9.48486265]
[1736632929724,1.6253,191.14,191.05,9.48486265]
[1736632931250,1.6253,191.14,191.06,9.48486265]
[1736632933743,1.6253,191.14,191.05,9.48486265]
[1736632933941,1.6253,191.14,191.06,9.48486265]
[1736632936247,1.6253,191.14,191.07,9.48486265]
[1736632938864,1.6253,191.14,191.1,9.48486265]
[1736632939028,81.83719147,191.17,191.1,9.48486265]
[1736632939555,1.6502,191.18,191.1,9.48486265]
[1736632939943,1.6502,191.18,191.11,9.48486265]
[1736632940634,1.6502,191.18,191.12,9.48486265]
[1736632942341,20.0,191.16,191.12,9.48486265]
[1736632942545,1.6502,191.18,191.12,9.48486265]
[1736632943557,1.6502,191.18,191.11,9.48486265]
[1736632947554,1.6502,191.18,191.07,23.776884]
[1736632947755,20.0,191.16,191.07,13.96486265]
[1736632947942,20.0,191.15,191.05,9.48486265]
[1736632948139,20.0,191.16,191.02,13.96486265]
[1736632948140,20.0,191.13,191.02,13.96486265]
[1736632948348,1.5914,191.12,191.01,4.48]
[1736632948555,7.6308,191.12,191.01,4.48]
[1736632949275,7.6308,191.12,191.0,9.48486265]
[1736632949453,2.6162,191.11,190.97,1.5714]
[1736632949655,20.0,191.09,190.97,1.5714]
[1736632949961,20.0,191.09,190.98,9.48486265]
[1736632951066,20.0,191.09,190.99,9.48486265]
[1736632951269,0.12549,191.08,190.99,9.48486265]
[1736632951882,20.0,191.09,191.01,9.48486265]
[1736632952119,20.0,191.09,191.02,9.48486265]
[1736632954169,20.0,191.09,191.01,9.48486265]
[1736632954873,20.0,191.09,191.02,9.48486265]
[1736632956368,20.0,191.09,190.98,23.776884]
[1736632956542,20.0,191.09,191.01,9.48486265]
[1736632960176,20.0,191.09,191.0,9.48486265]
[1736632961275,20.0,191.09,190.98,24.48]
[1736632961468,20.0,191.09,190.99,9.48486265]
[1736632962470,6.0664,191.05,190.94,4.48]
[1736632962649,6.0664,191.05,190.96,9.48486265]
[1736632963476,6.0664,191.05,190.95,9.48486265]
[1736632964176,8.6835,191.05,190.95,9.48486265]
[1736632964372,8.6835,191.05,190.96,9.48486265]
[1736632965282,0.12549,191.04,190.96,9.48486265]
[1736632968252,0.12549,191.04,190.93,4.48]
[1736632968452,0.12549,191.04,190.96,9.48486265]
[1736632969994,82.02549,191.04,190.93,4.48]
[1736632970165,1.5375,191.03,190.94,9.48486265]
[1736632970576,4.1548,191.03,190.93,9.48486265]
[1736632971005,1.5375,191.03,190.96,9.48486265]
[1736632971161,1.5375,191.03,190.97,9.48486265]
[1736632972077,4.1548,191.03,190.92,20.0]
[1736632972277,20.0,191.02,190.89,6.1295]
[1736632972486,20.0,191.02,190.93,9.48486265]
[1736632973660,20.0,191.02,190.92,9.48486265]
[1736632973861,20.0,191.02,190.9,4.48]
[1736632974061,0.12549,191.01,190.92,9.48486265]
[1736632974584,0.12549,191.01,190.9,4.48]
[1736632974784,0.12549,191.01,190.92,9.48486265]
[1736632976190,0.12549,190.99,190.92,9.48486265]
[1736632977392,0.12549,190.99,190.93,9.48486265]
[1736632986307,0.12549,190.99,190.92,9.48486265]
[1736632987800,20.0,191.02,190.93,9.48486265]
[1736632988005,20.0,191.02,190.95,9.48486265]
[1736632988377,20.0,191.01,190.94,9.48486265]
[1736632988988,20.0,191.01,190.93,9.48486265]
[1736632992311,0.12549,191.0,190.93,9.48486265]
[1736632996014,0.12549,191.0,190.94,9.48486265]
[1736632997018,0.12549,191.0,190.93,9.48486265]
[1736632997313,0.12549,191.0,190.94,9.48486265]
[1736632998109,0.12549,191.0,190.93,9.48486265]
[1736632998489,0.12549,191.0,190.93,23.776884]
[1736632999107,0.12549,191.0,190.93,33.26174665]
[1736632999306,0.12549,191.0,190.93,9.48486265]
[1736632999919,0.12549,191.0,190.94,9.48486265]
[1736633000515,20.0,191.01,190.94,9.48486265]
[1736633000703,20.0,191.01,190.95,9.48486265]
[1736633001817,20.0,191.01,190.94,9.48486265]
[1736633005598,20.0,191.01,190.93,9.48486265]
[1736633008716,20.0,191.01,190.94,9.48486265]
[1736633012735,20.0,191.01,190.94,23.776884]
[1736633015936,20.0,191.01,190.94,9.48486265]
[1736633022043,20.0,191.01,190.91,23.776884]
[1736633022353,20.0,191.01,190.89,20.0]
[1736633022637,22.6177,191.01,190.91,9.48486265]
[1736633023234,20.0,190.99,190.91,9.48486265]
[1736633024540,26.2439,190.99,190.91,9.48486265]
[1736633024738,1.6495,190.98,190.9,33.26174665]
[1736633025044,1.6495,190.98,190.89,9.48486265]
[1736633025439,1.6495,190.98,190.9,23.776884]
[1736633026023,0.12549,190.97,190.9,23.776884]
[1736633027322,0.12549,190.97,190.91,33.26174665]
[1736633029142,2.74379,190.97,190.85,20.0]
[1736633029352,2.74379,190.97,190.88,9.48486265]
[1736633030846,2.74379,190.97,190.87,9.48486265]
[1736633031145,2.74379,190.97,190.85,20.0]
[1736633031449,2.74379,190.97,190.87,9.48486265]
[1736633033143,2.74379,190.97,190.88,23.776884]
[1736633033335,2.74379,190.97,190.88,33.26174665]
[1736633034347,2.74379,190.97,190.85,24.48]
[1736633034551,2.74379,190.97,190.88,9.48486265]
[1736633036150,2.74379,190.97,190.9,33.26174665]
[1736633038333,2.74379,190.97,190.9,23.776884]
[1736633040487,0.12549,190.97,190.92,9.48486265]
[1736633041063,0.12549,190.97,190.88,9.48486265]
[1736633041278,0.12549,190.97,190.87,23.776884]
[1736633041443,0.12549,190.97,190.88,9.48486265]
[1736633042473,0.12549,190.97,190.9,23.776884]
[1736633047144,0.12549,190.97,190.85,4.48]
[1736633047351,0.12549,190.97,190.87,9.48486265]
[1736633049245,4.2676,190.98,190.8,14.6611]
[1736633049246,2.6183,190.96,190.8,14.6611]
[1736633049585,20.0,190.95,190.85,9.48486265]
[1736633049738,20.0,190.95,190.84,4.48]
[1736633049936,20.0,190.95,190.86,23.776884]
[1736633050351,1.5697,190.94,190.84,9.48486265]
[1736633050642,20.0,190.91,190.85,23.776884]
[1736633052077,20.0,190.91,190.84,9.48486265]
[1736633052256,20.0,190.91,190.83,9.48486265]
[1736633052769,0.12549,190.9,190.84,23.776884]
[1736633053080,20.0,190.91,190.85,9.48486265]
[1736633054480,0.12549,190.92,190.87,9.48486265]
[1736633054668,0.12549,190.92,190.88,9.48486265]
[1736633055848,0.12549,190.92,190.87,9.48486265]
[1736633057378,0.12549,190.92,190.81,23.776884]
[1736633057554,0.12549,190.92,190.87,9.48486265]
[1736633057755,0.12549,190.92,190.87,23.776884]
[1736633058990,7.8037,190.94,190.88,9.48486265]
[1736633059153,7.8037,190.94,190.89,23.776884]
[1736633062882,7.8037,190.94,190.87,9.48486265]
[1736633064681,7.8037,190.94,190.82,23.776884]
[1736633064682,19.0697,190.94,190.88,33.26174665]
[1736633064865,88.1182,190.98,190.9,9.48486265]
[1736633065382,0.12549,190.97,190.9,9.48486265]
[1736633066885,0.12549,190.97,190.9,23.776884]
[1736633067386,0.12549,190.97,190.85,23.776884]
[1736633067561,0.12549,190.97,190.88,9.48486265]
[1736633067757,1.78949,190.97,190.88,9.48486265]
[1736633067962,1.78949,190.97,190.89,23.776884]
[1736633068497,1.78949,190.97,190.87,33.26174665]
[1736633075199,1.78949,190.97,190.89,23.776884]
[1736633080901,1.78949,190.97,190.89,9.48486265]
[1736633082104,2.6183,190.96,190.89,23.776884]
[1736633082396,1.78949,190.97,190.89,23.776884]
[1736633096319,1.78949,190.97,190.9,9.48486265]
[1736633096488,1.78949,190.97,190.91,23.776884]
[1736633097388,1.78949,190.97,190.9,9.48486265]
[1736633097389,1.78949,190.97,190.9,23.776884]
[1736633100329,20.0,190.95,190.85,23.776884]
[1736633100494,20.0,190.95,190.84,9.48486265]
[1736633100690,20.0,190.95,190.83,9.48486265]
[1736633100989,6.3705,190.94,190.85,23.776884]
[1736633101193,20.0,190.91,190.85,23.776884]
[1736633101883,6.3705,190.94,190.88,9.48486265]
[1736633102088,6.3705,190.94,190.89,23.776884]
[1736633102887,6.3705,190.94,190.83,23.776884]
[1736633103086,6.3705,190.94,190.86,9.48486265]
[1736633103709,6.3705,190.94,190.87,23.776884]
[1736633104197,0.12549,190.93,190.85,9.48486265]
[1736633104388,0.12549,190.93,190.84,13.96486265]
[1736633104596,0.12549,190.93,190.85,33.26174665]
[1736633108309,0.12549,190.93,190.86,9.48486265]
[1736633109922,0.12549,190.93,190.85,33.26174665]
[1736633112918,0.12549,190.93,190.86,9.48486265]
[1736633113825,0.12549,190.93,190.85,33.26174665]
[1736633117428,6.3705,190.94,190.87,23.776884]
[1736633117730,6.3705,190.94,190.87,9.48486265]
[1736633119314,6.3705,190.94,190.88,9.48486265]
[1736633120810,6.3705,190.94,190.87,9.48486265]
[1736633124617,6.3705,190.94,190.89,23.776884]
[1736633128933,6.3705,190.94,190.87,9.48486265]
[1736633129141,6.3705,190.94,190.88,23.776884]
[1736633130239,6.3705,190.94,190.84,4.48]
[1736633130448,6.3705,190.94,190.85,9.48486265]
[1736633130923,6.3705,190.94,190.86,23.776884]
[1736633131724,6.3705,190.94,190.86,9.48486265]
[1736633131927,6.3705,190.94,190.88,23.776884]
[1736633136842,6.3705,190.94,190.86,9.48486265]
[1736633143152,6.3705,190.94,190.87,23.776884]
[1736633145163,6.3705,190.94,190.87,9.48486265]
[1736633151161,6.3705,190.94,190.88,9.48486265]
[1736633152757,6.3705,190.94,190.85,23.776884]
[1736633152948,6.3705,190.94,190.86,9.48486265]
[1736633153147,6.3705,190.94,190.87,23.776884]
[1736633153642,20.0,190.91,190.8,14.6609]
[1736633153862,21.5233,190.91,190.82,9.48486265]
[1736633154035,21.5233,190.91,190.83,23.776884]
[1736633154239,21.5233,190.91,190.85,9.48486265]
[1736633155555,21.5233,190.91,190.85,23.776884]
[1736633157560,1.5233,190.91,190.85,23.776884]
[1736633157767,21.5233,190.91,190.85,23.776884]
[1736633160577,21.5233,190.91,190.84,9.48486265]
[1736633160753,21.5233,190.91,190.82,9.48486265]
[1736633161148,6.0744,190.9,190.8,20.0]
[1736633161343,20.0,190.87,190.77,4.48]
[1736633161548,20.0,190.87,190.78,9.48486265]
[1736633161973,1.661,190.86,190.74,13.1065]
[1736633162163,6.0744,190.85,190.77,9.48486265]
[1736633162363,6.0744,190.85,190.76,9.48486265]
[1736633162572,6.0744,190.85,190.77,23.776884]
[1736633162750,6.0744,190.85,190.77,9.48486265]
[1736633164277,0.12549,190.84,190.77,9.48486265]
[1736633164971,0.12549,190.84,190.75,23.776884]
[1736633165152,0.12549,190.84,190.77,9.48486265]
[1736633166453,0.12549,190.84,190.76,9.48486265]
[1736633166660,0.12549,190.84,190.77,23.776884]
[1736633168161,0.12549,190.84,190.74,23.776884]
[1736633168555,0.12549,190.84,190.77,23.776884]
[1736633170279,20.0,190.82,190.73,4.48]
[1736633170468,20.0,190.82,190.74,9.48486265]
[1736633170673,1.5976,190.81,190.71,20.0]
[1736633170873,1.5976,190.81,190.73,9.48486265]
[1736633171191,1.5976,190.81,190.74,23.776884]
[1736633171795,1.5976,190.81,190.77,9.48486265]
[1736633172099,20.0,190.82,190.78,9.48486265]
[1736633173178,20.0,190.82,190.76,9.48486265]
[1736633173654,20.0,190.82,190.71,23.776884]
[1736633173858,20.0,190.82,190.76,9.48486265]
[1736633174058,0.12549,190.81,190.77,9.48486265]
[1736633175866,6.0744,190.85,190.79,9.48486265]
[1736633176179,6.0744,190.85,190.8,9.48486265]
[1736633177192,10.4764,190.9,190.82,9.48486265]
[1736633177487,10.4764,190.9,190.75,23.776884]
[1736633177488,10.4764,190.9,190.83,9.48486265]
[1736633178062,20.0,190.87,190.83,9.48486265]
[1736633178781,0.12549,190.89,190.84,33.26174665]
[1736633179376,0.12549,190.89,190.84,23.776884]
[1736633179964,0.12549,190.89,190.84,9.48486265]
[1736633180385,0.12549,190.89,190.84,23.776884]
[1736633187387,0.12549,190.89,190.83,23.776884]
[1736633187907,0.12549,190.89,190.82,23.776884]
[1736633189405,0.12549,190.89,190.82,33.26174665]
[1736633189700,0.12549,190.89,190.83,9.48486265]
[1736633192305,0.12549,190.89,190.82,9.48486265]
[1736633193403,0.12549,190.89,190.82,23.776884]
[1736633196008,20.0,190.87,190.75,13.1058]
[1736633196210,20.0,190.87,190.77,9.48486265]
[1736633196500,20.0,190.86,190.76,9.48486265]
[1736633196685,6.5377,190.84,190.72,4.48]
[1736633196891,6.5377,190.84,190.72,13.96486265]
[1736633197286,20.0,190.81,190.72,13.96486265]
[1736633197603,20.0,190.81,190.72,9.48486265]
[1736633197809,20.0,190.81,190.73,23.776884]
[1736633198210,20.0,190.81,190.73,9.48486265]
[1736633198383,20.0,190.81,190.76,9.48486265]
[1736633198900,20.0,190.81,190.75,9.48486265]
[1736633199294,20.0,190.81,190.72,9.48486265]
[1736633199684,20.0,190.81,190.75,23.776884]
[1736633200006,20.0,190.81,190.75,9.48486265]
[1736633202609,20.0,190.81,190.75,23.776884]
[1736633203902,20.0,190.81,190.75,9.48486265]
[1736633205014,20.0,190.81,190.77,23.776884]
[1736633206809,0.12549,190.83,190.77,23.776884]
[1736633207009,6.5377,190.84,190.8,9.48486265]
[1736633207216,83.5451,190.85,190.81,23.776884]
[1736633207417,1.6451,190.85,190.81,33.26174665]
[1736633208094,1.6451,190.85,190.81,23.776884]
[1736633208717,1.6451,190.85,190.79,23.776884]
[1736633210023,21.6451,190.85,190.79,23.776884]
[1736633212615,0.12549,190.84,190.74,9.48486265]
[1736633212796,0.12549,190.84,190.73,9.48486265]
[1736633213223,0.12549,190.84,190.74,23.776884]
[1736633213620,2.74539,190.84,190.74,23.776884]
[1736633214810,2.74539,190.84,190.72,23.776884]
[1736633215117,2.74539,190.84,190.74,23.776884]
[1736633215308,2.74539,190.84,190.74,9.48486265]
[1736633218426,2.74539,190.84,190.76,23.776884]
[1736633218825,2.74539,190.84,190.74,9.48486265]
[1736633219414,2.74539,190.84,190.76,23.776884]
[1736633219615,2.74539,190.84,190.76,33.26174665]
[1736633220511,22.74539,190.84,190.78,23.776884]
[1736633220906,20.0,190.83,190.78,23.776884]
[1736633223808,2.74539,190.84,190.78,23.776884]
[1736633225634,2.74539,190.84,190.78,9.48486265]
[1736633226031,20.0,190.83,190.78,23.776884]
[1736633226933,1.6451,190.85,190.78,9.48486265]
[1736633227121,1.6451,190.85,190.8,33.26174665]
[1736633227521,1.6451,190.85,190.8,23.776884]
[1736633229817,1.6451,190.85,190.78,9.48486265]
[1736633235346,1.6451,190.85,190.8,23.776884]
[1736633238347,84.5196,190.87,190.8,23.776884]
[1736633238568,2.0809894,190.89,190.82,23.776884]
[1736633238728,4.2055,190.9,190.83,9.48486265]
[1736633239054,20.0,190.88,190.84,23.776884]
[1736633239255,20.0,190.88,190.82,9.48486265]
[1736633239746,20.0,190.88,190.83,23.776884]
[1736633240924,1.5863,190.9,190.83,9.48486265]
[1736633241145,1.5863,190.9,190.77,0.78593271]
[1736633241146,1.5863,190.9,190.85,23.776884]
[1736633243953,1.5863,190.9,190.84,23.776884]
[1736633248531,1.5863,190.9,190.82,33.26174665]
[1736633257578,1.5863,190.9,190.82,23.776884]
[1736633258670,1.5863,190.9,190.81,23.776884]
[1736633259595,1.5863,190.9,190.8,23.776884]
[1736633260369,1.5863,190.9,190.81,9.48486265]
[1736633265890,0.12549,190.89,190.81,9.48486265]
[1736633270292,0.12549,190.89,190.82,23.776884]
[1736633271899,1.5863,190.9,190.82,9.48486265]
[1736633272094,1.5863,190.9,190.84,23.776884]
[1736633273107,1.5863,190.9,190.84,9.48486265]
[1736633273391,81.9,190.91,190.86,9.48486265]
[1736633273585,81.9,190.91,190.86,23.776884]
[1736633273785,81.9,190.91,190.8,9.48486265]
[1736633273974,20.0,190.88,190.79,13.96486265]
[1736633274570,20.0,190.88,190.8,23.776884]
[1736633275605,0.12549,190.87,190.8,33.26174665]
[1736633276705,0.12549,190.87,190.79,23.776884]
[1736633276912,0.12549,190.87,190.79,33.26174665]
[1736633279376,0.12549,190.87,190.79,9.48486265]
[1736633279779,20.12549,190.87,190.79,9.48486265]
[1736633281881,0.12549,190.87,190.79,9.48486265]
[1736633282412,20.12549,190.87,190.79,9.48486265]
[1736633284183,6.40918476,190.9,190.79,9.48486265]
[1736633285310,81.9,190.89,190.79,9.48486265]
[1736633286910,81.9,190.89,190.81,23.776884]
[1736633287932,81.9,190.89,190.81,9.48486265]
[1736633288136,81.9,190.89,190.83,33.26174665]
[1736633288420,0.12549,190.88,190.81,9.48486265]
[1736633288602,0.12549,190.88,190.8,9.48486265]
[1736633288792,0.12549,190.88,190.81,23.776884]
[1736633289813,0.12549,190.88,190.8,23.776884]
[1736633290519,0.12549,190.86,190.8,23.776884]
[1736633292306,20.0,190.82,190.72,12.58344784]
[1736633292500,20.0,190.82,190.73,9.48486265]
[1736633292708,20.0,190.82,190.72,12.58344784]
[1736633292906,20.0,190.82,190.73,9.48486265]
[1736633293493,20.0,190.82,190.74,23.776884]
[1736633295942,0.12549,190.81,190.73,23.776884]
[1736633296093,0.12549,190.81,190.65,14.6159]
[1736633296296,20.0,190.77,190.7,9.48486265]
[1736633296812,20.0,190.77,190.71,23.776884]
[1736633297015,20.0,190.77,190.71,33.26174665]
[1736633298701,20.0,190.77,190.71,9.48486265]
[1736633300735,20.0,190.77,190.69,23.776884]
[1736633300900,20.0,190.77,190.71,9.48486265]
[1736633306441,20.0,190.77,190.72,9.48486265]
[1736633312733,20.0,190.77,190.72,23.776884]
[1736633320638,20.0,190.77,190.71,23.776884]
[1736633329929,20.0,190.77,190.71,9.48486265]
[1736633330946,20.0,190.77,190.72,9.48486265]
[1736633331529,20.0,190.77,190.72,23.776884]
[1736633332741,20.0,190.77,190.71,23.776884]
[1736633334157,20.0,190.77,190.69,23.776884]
[1736633334325,21.5587,190.77,190.68,13.96486265]
[1736633334755,103.4587,190.77,190.69,23.776884]
[1736633335365,103.4587,190.77,190.67,23.776884]
[1736633335534,103.4587,190.77,190.69,9.48486265]
[1736633336856,103.4587,190.77,190.69,23.776884]
[1736633338456,0.12549,190.76,190.66,23.776884]
[1736633338632,0.12549,190.76,190.69,23.776884]
[1736633339865,0.12549,190.76,190.69,9.48486265]
[1736633346160,81.9,190.75,190.62,8.10344784]
[1736633346359,20.0,190.72,190.64,9.48486265]
[1736633346547,20.0,190.72,190.65,9.48486265]
[1736633347360,20.0,190.72,190.66,23.776884]
[1736633350864,20.0,190.72,190.66,9.48486265]
[1736633352548,0.12549,190.71,190.61,23.776884]
[1736633352865,1.64389,190.71,190.64,23.776884]
[1736633353251,1.64389,190.71,190.63,23.776884]
[1736633353747,1.5184,190.71,190.63,33.26174665]
[1736633353954,1.5184,190.71,190.66,33.26174665]
[1736633354139,20.0,190.72,190.68,9.48486265]
[1736633356776,0.12549,190.74,190.68,33.26174665]
[1736633357268,0.12549,190.74,190.68,23.776884]
[1736633366594,0.12549,190.74,190.66,9.48486265]
[1736633366893,0.12549,190.74,190.67,33.26174665]
[1736633367697,0.12549,190.74,190.67,23.776884]
[1736633367897,20.0,190.72,190.65,9.48486265]
[1736633368196,20.0,190.72,190.66,23.776884]
[1736633373909,20.0,190.72,190.65,23.776884]
[1736633374071,20.0,190.72,190.65,33.26174665]
[1736633386092,22.6217,190.72,190.61,20.0]
[1736633386288,22.6217,190.72,190.61,29.48486265]
[1736633387277,22.6217,190.72,190.64,23.776884]
[1736633387480,20.0,190.72,190.66,23.776884]
[1736633391992,20.0,190.72,190.62,23.776884]
[1736633392196,20.0,190.72,190.64,9.48486265]
[1736633392580,20.0,190.72,190.66,23.776884]
[1736633397008,20.0,190.72,190.64,13.96486265]
[1736633397302,20.0,190.72,190.65,23.776884]
[1736633403526,8.031,190.71,190.63,9.48486265]
[1736633403724,5.0,190.58,190.49,90.34268419]
[1736633403888,10.0,190.52,190.38,110.29749344]
[1736633404080,5.0,190.49,190.38,110.29749344]
[1736633404406,0.78663629,190.48,190.38,119.78235609]
[1736633404605,0.78663629,190.48,190.38,9.48486265]
[1736633404815,5.0,190.45,190.41,9.48486265]
[1736633405108,5.0,190.47,190.36,4.58]
[1736633405109,25.01990222,190.47,190.43,9.48486265]
[1736633405614,25.01990222,190.46,190.44,9.48486265]
[1736633406110,25.01990222,190.46,190.4,42.5194506]
[1736633406111,10.72281523,190.45,190.4,42.5194506]
[1736633406286,10.72281523,190.45,190.44,9.48486265]
[1736633406613,25.01990222,190.45,190.39,20.0]
[1736633406807,25.01990222,190.45,190.39,19.93294773]
[1736633407014,10.72281523,190.44,190.38,4.58]
[1736633407189,32.36661085,190.44,190.43,9.48486265]
[1736633407390,32.36661085,190.44,190.43,9.46486265]
[1736633407591,8.59661085,190.44,190.43,9.46486265]
[1736633408597,22.89369784,190.44,190.43,33.24174665]
[1736633409415,53.89012219,190.44,190.43,33.24174665]
[1736633411417,91.10361166,190.44,190.43,33.24174665]
[1736633412122,134.29657296,190.44,190.43,33.24174665]
[1736633413501,134.29657296,190.44,190.43,29.48486265]
[1736633414202,134.29657296,190.44,190.42,20.0]
[1736633414410,134.29657296,190.44,190.39,56.76]
[1736633414411,111.40287512,190.44,190.43,22.61296265]
[1736633414598,111.40287512,190.44,190.43,42.61296265]
[1736633414799,101.64737512,190.44,190.43,42.61296265]
[1736633415018,95.75847512,190.44,190.43,42.61296265]
[1736633415300,88.46704468,190.44,190.43,42.61296265]
[1736633416117,74.74505077,190.44,190.43,56.904984]
[1736633416301,71.91435077,190.44,190.43,66.38984665]
[1736633417025,71.91435077,190.44,190.43,56.904984]
[1736633418220,71.91435077,190.44,190.43,66.38984665]
[1736633420217,68.29375077,190.44,190.43,66.38984665]
[1736633420424,65.63995077,190.44,190.43,66.38984665]
[1736633428117,65.63995077,190.44,190.43,56.904984]
[1736633428314,65.63995077,190.44,190.43,66.38984665]
[1736633429722,43.1929613,190.44,190.43,66.38984665]
[1736633430439,43.1929613,190.44,190.43,42.61296265]
[1736633430619,43.1929613,190.44,190.43,33.1281]
[1736633430933,43.1929613,190.44,190.43,42.61296265]
[1736633432027,43.1929613,190.44,190.43,66.38984665]
[1736633434731,145.13329994,190.49,190.44,23.776884]
[1736633434936,145.13329994,190.49,190.45,9.48486265]
[1736633435238,145.13329994,190.49,190.44,33.26174665]
[1736633438241,145.13329994,190.49,190.44,9.48486265]
[1736633440946,145.13329994,190.49,190.45,9.48486265]
[1736633441835,145.13329994,190.49,190.43,33.1281]
[1736633442040,5.98431866,190.48,190.35,6.6183]
[1736633442234,5.98431866,190.48,190.39,13.1309]
[1736633442434,5.0,190.47,190.39,13.1309]
[1736633442640,5.98460151,190.46,190.39,13.1309]
[1736633443256,5.98460151,190.46,190.39,22.61576265]
[1736633444223,5.0,190.45,190.36,13.133]
[1736633444424,5.0,190.45,190.39,9.48486265]
[1736633444936,5.0,190.43,190.36,13.133]
[1736633445140,5.0,190.43,190.39,9.48486265]
[1736633445448,5.0,190.41,190.31,6.0049]
[1736633445755,0.98482797,190.4,190.33,9.48486265]
[1736633446248,5.98486797,190.41,190.33,9.48486265]
[1736633446438,5.98486797,190.41,190.34,9.48486265]
[1736633447247,5.98486797,190.41,190.35,9.48486265]
[1736633447838,5.98486797,190.41,190.34,9.48486265]
[1736633448956,5.98486797,190.41,190.35,9.48486265]
[1736633449152,5.0,190.41,190.35,9.48486265]
[1736633449352,5.98486894,190.41,190.31,20.0]
[1736633449549,5.98486894,190.41,190.34,9.48486265]
[1736633449752,5.98486894,190.41,190.35,9.48486265]
[1736633451262,5.98486894,190.41,190.32,13.1355]
[1736633451434,5.98486894,190.41,190.34,9.48486265]
[1736633451635,5.0,190.39,190.32,13.1355]
[1736633452150,5.0,190.35,190.24,13.1412]
[1736633452456,5.0,190.35,190.3,9.48486265]
[1736633452659,5.0,190.35,190.31,9.48486265]
[1736633452963,10.0,190.37,190.31,9.48486265]
[1736633453149,10.0,190.37,190.27,20.0]
[1736633453341,5.0,190.38,190.33,9.48486265]
[1736633453547,5.98499877,190.38,190.33,9.48486265]
[1736633453743,10.98499877,190.38,190.33,9.48486265]
[1736633453948,5.98499877,190.38,190.33,9.48486265]
[1736633454140,5.0,190.37,190.33,9.48486265]
[1736633454836,5.98499877,190.38,190.33,9.48486265]
[1736633455257,5.0,190.37,190.33,9.48486265]